fUST/lending_fUST_20251011
["ID","MTS","AMOUNT","RATE_DAILY","PERIOD"]
[390747475,1760136646689,-151.0,0.00029508,30]
[390747477,1760136646698,-817.634918,0.00029508,30]
[390747478,1760136646707,-151.0,0.00029508,30]
[390747480,1760136646716,-817.634918,0.00029508,30]
[390747482,1760136646725,-152.401728,0.00029508,30]
[390747484,1760136646735,-817.634918,0.00029508,30]
[390747486,1760136646744,-817.63492705,0.00029508,30]
[390747488,1760136646754,-155.123188,0.00029508,30]
[390747490,1760136646763,-155.123188,0.00029508,30]
[390747492,1760136646772,-155.123188,0.00029508,30]
[390747494,1760136646783,-155.123188,0.00029508,30]
[390747496,1760136646791,-155.123188,0.00029508,30]
[390747498,1760136646801,-155.123188,0.00029508,30]
[390747500,1760136646810,-155.123188,0.00029508,30]
[390747501,1760136646820,-155.123188,0.00029508,30]
[390747503,1760136646829,-155.123188,0.00029508,30]
[390747505,1760136646839,-155.123188,0.00029508,30]
[390747507,1760136646848,-155.123188,0.00029508,30]
[390747509,1760136646858,-155.123188,0.00029508,30]
[390747511,1760136646868,-155.123188,0.00029508,30]
[390747513,1760136646877,-155.123188,0.00029508,30]
[390747515,1760136646889,-155.123188,0.00029508,30]
[390747517,1760136646899,-155.123188,0.00029508,30]
[390747519,1760136646908,-155.123188,0.00029508,30]
[390747521,1760136646917,-155.123188,0.00029508,30]
[390747523,1760136646927,-155.123188,0.00029508,30]
[390747525,1760136646936,-151.0,0.00029508,30]
[390747527,1760136646946,-155.123181,0.00029508,30]
[390747529,1760136646955,-151.0,0.00029508,30]
[390747531,1760136646964,-151.0,0.00029508,30]
[390747532,1760136646974,-151.0,0.00029508,30]
[390747534,1760136646983,-151.0,0.00029508,30]
[390747536,1760136646993,-151.0,0.00029508,30]
[390747538,1760136647002,-155.775176,0.00029508,30]
[390747540,1760136647012,-334.260558,0.00029508,30]
[390747542,1760136647021,-334.260558,0.00029508,30]
[390747544,1760136647031,-334.260558,0.00029508,30]
[390747546,1760136647040,-334.260558,0.00029508,30]
[390747548,1760136647050,-334.260558,0.00029508,30]
[390747550,1760136647059,-334.260558,0.00029508,30]
[390747552,1760136647068,-311.167933,0.00029508,15]
[390747554,1760136647077,-334.260558,0.00029508,30]
[390747556,1760136647086,-311.167933,0.00029508,15]
[390747558,1760136647095,-334.260558,0.00029508,30]
[390747560,1760136647105,-311.167933,0.00029508,15]
[390747562,1760136647114,-334.260558,0.00029508,30]
[390747564,1760136647123,-334.260558,0.00029508,30]
[390747565,1760136647132,-311.167933,0.00029508,15]
[390747567,1760136647143,-334.260558,0.00029508,30]
[390747569,1760136647152,-311.167933,0.00029508,15]
[390747571,1760136647162,-334.260558,0.00029508,30]
[390747573,1760136647172,-311.167933,0.00029508,15]
[390747575,1760136647181,-334.260558,0.00029508,30]
[390747577,1760136647192,-311.167933,0.00029508,15]
[390747579,1760136647202,-334.260558,0.00029508,30]
[390747580,1760136647212,-311.167933,0.00029508,15]
[390747582,1760136647222,-334.260558,0.00029508,30]
[390747584,1760136647232,-311.167933,0.00029508,15]
[390747586,1760136647241,-334.260558,0.00029508,30]
[390747588,1760136647253,-311.167933,0.00029508,15]
[390747590,1760136647263,-334.260558,0.00029508,30]
[390747592,1760136647272,-311.167933,0.00029508,15]
[390747594,1760136647284,-334.260558,0.00029508,30]
[390747596,1760136647294,-311.167933,0.00029508,15]
[390747598,1760136647304,-334.260558,0.00029508,30]
[390747600,1760136647316,-311.167933,0.00029508,15]
[390747602,1760136647327,-334.260555,0.00029508,30]
[390747603,1760136647337,-311.167933,0.00029508,15]
[390747605,1760136647347,-311.167933,0.00029508,15]
[390747607,1760136647358,-311.167933,0.00029508,15]
[390747609,1760136647368,-311.167933,0.00029508,15]
[390747611,1760136647377,-311.167933,0.00029508,15]
[390747613,1760136647388,-311.167933,0.00029508,15]
[390747615,1760136647399,-311.167936,0.00029508,15]
[390747617,1760136647408,-647.51473,0.00029508,30]
[390747619,1760136647417,-647.51473,0.00029508,30]
[390747621,1760136647427,-647.51473,0.00029508,30]
[390747622,1760136647436,-647.51473,0.00029508,30]
[390747624,1760136647446,-647.51473,0.00029508,30]
[390747626,1760136647455,-647.51473,0.00029508,30]
[390747628,1760136647464,-647.51473,0.00029508,30]
[390747630,1760136647474,-647.51473,0.00029508,30]
[390747632,1760136647484,-647.51473,0.00029508,30]
[390747634,1760136647495,-647.51473,0.00029508,30]
[390747636,1760136647504,-647.51473,0.00029508,30]
[390747638,1760136647514,-647.51473,0.00029508,30]
[390747639,1760136647523,-647.51473,0.00029508,30]
[390747640,1760136647532,-647.51473,0.00029508,30]
[390747641,1760136647541,-647.51473,0.00029508,30]
[390747642,1760136647550,-647.51473,0.00029508,30]
[390747643,1760136647558,-647.51473,0.00029508,30]
[390747644,1760136647567,-647.51473,0.00029508,30]
[390747645,1760136647576,-647.51473,0.00029508,30]
[390747646,1760136647585,-647.514721,0.00029508,30]
[390747647,1760136647594,-151.0,0.00029508,30]
[390747648,1760136647604,-151.0,0.00029508,30]
[390747649,1760136647613,-151.0,0.00029508,30]
[390747650,1760136647622,-151.0,0.00029508,30]
[390747651,1760136647631,-151.0,0.00029508,30]
[390747652,1760136647643,-151.0,0.00029508,30]
[390747653,1760136647651,-151.0,0.00029508,30]
[390747654,1760136647661,-151.0,0.00029508,30]
[390747655,1760136647670,-151.0,0.00029508,30]
[390747656,1760136647680,-151.0,0.00029508,30]
[390747657,1760136647689,-151.0,0.00029508,30]
[390747659,1760136647698,-151.0,0.00029508,30]
[390747661,1760136647708,-151.0,0.00029508,30]
[390747663,1760136647718,-151.0,0.00029508,30]
[390747665,1760136647728,-151.0,0.00029508,30]
[390747667,1760136647737,-151.0,0.00029508,30]
[390747669,1760136647747,-393.78728,0.00029508,30]
[390747671,1760136647756,-393.78728,0.00029508,30]
[390747673,1760136647765,-297.415729,0.00029508,30]
[390747675,1760136647774,-393.78728,0.00029508,30]
[390747677,1760136647784,-151.0,0.00029508,30]
[390747679,1760136647793,-393.78728,0.00029508,30]
[390747681,1760136647803,-151.0,0.00029508,30]
[390747683,1760136647812,-393.78728,0.00029508,30]
[390747685,1760136647822,-151.0,0.00029508,30]
[390747687,1760136647832,-393.78728,0.00029508,30]
[390747689,1760136647842,-393.78728,0.00029508,30]
[390747691,1760136647851,-151.0,0.00029508,30]
[390747693,1760136647860,-393.78728,0.00029508,30]
[390747695,1760136647869,-151.0,0.00029508,30]
[390747697,1760136647880,-393.78728,0.00029508,30]
[390747699,1760136647892,-151.0,0.00029508,30]
[390747701,1760136647901,-393.78728,0.00029508,30]
[390747703,1760136647910,-151.0,0.00029508,30]
[390747705,1760136647920,-393.78728,0.00029508,30]
[390747707,1760136647929,-151.0,0.00029508,30]
[390747709,1760136647938,-393.78728,0.00029508,30]
[390747711,1760136647947,-151.0,0.00029508,30]
[390747713,1760136647956,-393.78728,0.00029508,30]
[390747715,1760136647965,-151.0,0.00029508,30]
[390747717,1760136647975,-393.78728,0.00029508,30]
[390747720,1760136647985,-151.0,0.00029508,30]
[390747722,1760136647998,-393.78728,0.00029508,30]
[390747724,1760136648012,-151.0,0.00029508,30]
[390747725,1760136648022,-2937500.21882969,0.00029521,20]
[390747755,1760136648325,-610.41390964,0.00029517,60]
[390747757,1760136648335,-200.0,0.00029517,120]
[390747759,1760136648346,-626442.33862291,0.00029521,20]
[390747761,1760136648356,-150.0,0.00029521,2]
[390747763,1760136648366,-3144891.00907263,0.00029521,20]
[390747766,1760136648380,-47374.29423352,0.00029521,20]
[390747768,1760136648393,-2299.37783125,0.00029521,20]
[390747849,1760136649202,-151.0,0.00029508,30]
[390747851,1760136649212,-151.0,0.00029508,30]
[390747853,1760136649223,-271.671125,0.00029508,30]
[390747855,1760136649232,-3632.48606664,0.00029521,20]
[390747918,1760136649872,-393.78728,0.00029508,30]
[390747920,1760136649882,-393.78728,0.00029508,30]
[390747922,1760136649892,-393.78728,0.00029508,30]
[390747924,1760136649901,-151.0,0.00029521,30]
[390747926,1760136649911,-151.0,0.00029521,30]
[390747928,1760136649919,-151.0,0.00029521,30]
[390747930,1760136649929,-151.0,0.00029521,30]
[390747931,1760136649939,-1492.13045558,0.00029521,20]
[390747934,1760136649950,-467.4065307,0.00029521,20]
[390747936,1760136649960,-500.0039044,0.00029521,20]
[390748086,1760136651484,-7246.995569,0.00029508,30]
[390748088,1760136651493,-393.78728,0.00029508,30]
[390748090,1760136651503,-7246.995569,0.00029508,30]
[390748092,1760136651512,-393.787285,0.00029508,30]
[390748094,1760136651520,-151.0,0.00029508,30]
[390748096,1760136651529,-7246.995569,0.00029508,30]
[390748098,1760136651538,-151.0,0.00029508,30]
[390748100,1760136651547,-7246.995569,0.00029508,30]
[390748102,1760136651556,-7246.995569,0.00029508,30]
[390748104,1760136651565,-151.0,0.00029508,30]
[390748106,1760136651575,-7246.995569,0.00029508,30]
[390748107,1760136651584,-151.0,0.00029508,30]
[390748109,1760136651592,-7246.995569,0.00029508,30]
[390748111,1760136651601,-151.0,0.00029508,30]
[390748113,1760136651611,-7246.995569,0.00029508,30]
[390748115,1760136651621,-151.0,0.00029508,30]
[390748118,1760136651631,-7246.995569,0.00029508,30]
[390748120,1760136651642,-7246.995569,0.00029508,30]
[390748122,1760136651651,-6855.58600372,0.00029508,30]
[390757583,1760136912637,1500.0,0.00015,2]
[390758130,1760137021970,5610.38,0.00024,30]
[390758203,1760137320178,3628.29323924,0.00017,10]
[390758204,1760137360060,824.1261015,0.00028767,120]
[390758205,1760137484634,151.0,0.00024,120]
[390758206,1760137486060,151.0,0.000255,120]
[390758207,1760137487468,151.0,0.00027,120]
[390758209,1760137488841,151.0,0.000285,120]
[390758210,1760137718135,154.0,0.00024,120]
[390758211,1760137719616,154.0,0.000257,120]
[390758212,1760137720220,-844.71,0.00017152,2]
[390758213,1760137720246,-150.0,0.00017157,2]
[390758214,1760137720271,-160.0,0.00017251,2]
[390758215,1760137720297,-500.0,0.00017257,2]
[390758216,1760137720321,-500.0,0.00017257,2]
[390758217,1760137720346,-200.0,0.00017431,2]
[390758218,1760137720373,-172.5,0.00017757,2]
[390758219,1760137720398,-1678.947,0.000178,2]
[390758220,1760137721025,154.0,0.000273,120]
[390758346,1760137835038,200.0,0.00027,120]
[390758347,1760137835337,200.0,0.000277,120]
[390758348,1760137835629,200.0,0.000284,120]
[390758354,1760137838446,-156.50699159,0.00017708,2]
[390758355,1760137838456,-965.21450614,0.000178,2]
[390758356,1760137838466,-1000.0,0.00017808,2]
[390758357,1760137838476,-156.50699159,0.00018003,2]
[390758358,1760137838489,-1000.0,0.00018082,2]
[390758359,1760137838499,-151.0,0.00018103,2]
[390758360,1760137838509,-151.0,0.00018103,2]
[390758361,1760137838520,-151.0,0.00018103,2]
[390758362,1760137838530,-151.0,0.00018103,2]
[390758363,1760137838540,-151.0,0.00018103,2]
[390758364,1760137838550,-151.0,0.00018103,2]
[390758365,1760137838560,-151.0,0.00018103,2]
[390758366,1760137838569,-151.0,0.00018103,2]
[390758367,1760137838579,-1000.0,0.00018114,2]
[390758368,1760137838589,-1000.0,0.00018356,2]
[390758369,1760137838599,-195.0,0.00018357,2]
[390758370,1760137838608,-992.19616313,0.0001863,2]
[390758371,1760137838618,-300.0,0.00018719,2]
[390758372,1760137838628,-1200.0,0.00018719,2]
[390758373,1760137838639,-42166.25836924,0.0001872,2]
[390758374,1760137838652,-160.73,0.0001872,2]
[390758375,1760137838662,-217.5,0.00018957,2]
[390758376,1760137838672,-160.73,0.00018994,2]
[390758377,1760137838683,-150.0,0.00019009,2]
[390758378,1760137838695,-160.74,0.00019268,2]
[390758379,1760137838705,-240.0,0.00019557,2]
[390758380,1760137838715,-262.5,0.00020157,2]
[390758381,1760137838725,-500.0,0.00020348,2]
[390758382,1760137838739,-420.0,0.00020409,2]
[390758383,1760137838751,-1680.0,0.00020509,2]
[390758384,1760137838762,-199.65,0.000206,2]
[390758385,1760137838773,-160.0,0.00020658,2]
[390758386,1760137838784,-526.02426037,0.00020658,2]
[390758387,1760137838794,-160.0,0.00020658,2]
[390758388,1760137838804,-417.15472785,0.00020658,2]
[390758389,1760137838815,-298.03512572,0.00020658,2]
[390758390,1760137838825,-151.14,0.00020695,2]
[390758391,1760137838835,-276.98422444,0.000207,2]
[390758392,1760137838847,-285.0,0.00020757,2]
[390758393,1760137838861,-307.5,0.00021357,2]
[390758394,1760137838871,-500.0,0.00021419,2]
[390758395,1760137838881,-174.0,0.00022,2]
[390758396,1760137838890,-587.0,0.00022252,2]
[390758397,1760137838900,-666.66666667,0.00022325,4]
[390758398,1760137838909,-226.71,0.0002242,2]
[390758399,1760137838919,-666.66666667,0.00022458,6]
[390758400,1760137838929,-500.0,0.00022546,2]
[390758401,1760137838939,-666.66666667,0.00022592,8]
[390758402,1760137838949,-666.66666667,0.00022725,10]
[390758403,1760137838959,-160.0,0.00023,2]
[390758404,1760137838969,-157.35729958,0.00023137,5]
[390758405,1760137838980,-500.0,0.00023673,2]
[390758406,1760137838991,-302.28,0.00024145,2]
[390758407,1760137839002,-184.359,0.0002425,6]
[390758408,1760137839014,-613.0,0.00024262,2]
[390758409,1760137839026,-250.0,0.0002435,2]
[390758410,1760137839037,-310.0995801,0.00024857,2]
[390758411,1760137839048,-160.0,0.00025611,3]
[390758412,1760137839059,-377.85,0.00025869,2]
[390758413,1760137839070,-167.85147762,0.00026412,2]
[390758414,1760137839080,-500.0,0.00026507,2]
[390758415,1760137839089,-500.0,0.00027397,2]
[390758416,1760137839099,-480.0,0.00027397,60]
[390758417,1760137839109,-500.0,0.00027397,2]
[390758418,1760137839119,-1000.0,0.00027397,2]
[390758419,1760137839130,-500.0,0.00027397,60]
[390758420,1760137839140,-200.0,0.00027397,2]
[390758421,1760137839150,-500.0,0.00027397,60]
[390758422,1760137839159,-500.0,0.00027397,60]
[390758423,1760137839170,-500.0,0.00027397,2]
[390758424,1760137839179,-160.0,0.00027557,4]
[390758425,1760137839189,-453.41,0.00027594,2]
[390758426,1760137839199,-2220.97660175,0.00027996,2]
[390758427,1760137839209,-151.0,0.00028015,2]
[390758428,1760137839219,-151.0,0.00028015,2]
[390758429,1760137839230,-18603.8837,0.00028015,2]
[390758430,1760137839240,-151.0,0.00028015,2]
[390758431,1760137839250,-151.0,0.00028015,2]
[390758432,1760137839259,-253.52086394,0.00028015,2]
[390758433,1760137839269,-398.0,0.00028239,2]
[390758434,1760137839279,-352.0,0.00028266,2]
[390758435,1760137839289,-398.0,0.00028315,2]
[390758436,1760137839298,-398.0,0.00028395,2]
[390758437,1760137839308,-4465.23678412,0.00028563,2]
[390758438,1760137839319,-398.0,0.00028576,2]
[390758439,1760137839330,-308.59444732,0.000286,2]
[390758440,1760137839343,-91.40555268,0.000286,2]
[390758441,1760137839353,-2477.69,0.0002861,10]
[390758442,1760137839363,-6692.52335646,0.0002862,2]
[390758443,1760137839372,-500.0,0.00028699,7]
[390758444,1760137839382,-2973.22,0.0002871,10]
[390758445,1760137839392,-193.63,0.0002871,3]
[390758446,1760137839403,-25471.53109116,0.0002872,2]
[390758447,1760137839497,-87856.95355284,0.0002872,2]
[390758448,1760137839507,-2881.11900149,0.0002872,2]
[390758449,1760137839518,-1000.0,0.00028767,30]
[390758450,1760137839528,-500.0,0.00028769,60]
[390758451,1760137839538,-20186.90467408,0.0002877,2]
[390758452,1760137839548,-510.65369265,0.00028773,5]
[390758453,1760137839559,-500.0,0.00028773,2]
[390758454,1760137839569,-169.39408134,0.00028773,5]
[390758455,1760137839579,-159.71258486,0.00028773,5]
[390758456,1760137839589,-500.60004698,0.00028773,5]
[390758457,1760137839599,-500.0,0.00028773,5]
[390758458,1760137839610,-500.0,0.00028773,5]
[390758459,1760137839620,-500.0,0.00028773,5]
[390758460,1760137839630,-500.0,0.00028773,5]
[390758461,1760137839641,-261.51307237,0.00028773,5]
[390758462,1760137839653,-500.0,0.00028773,5]
[390758463,1760137839663,-201.28667985,0.00028773,5]
[390758464,1760137839674,-207.88924719,0.00028773,5]
[390758465,1760137839686,-500.37089015,0.00028773,5]
[390758466,1760137839696,-500.0,0.00028773,5]
[390758467,1760137839706,-500.17027513,0.00028773,5]
[390758468,1760137839717,-521.97760954,0.00028773,5]
[390758469,1760137839727,-500.0,0.00028773,5]
[390758470,1760137839741,-500.88062598,0.00028773,5]
[390758471,1760137839752,-500.0,0.00028773,5]
[390758472,1760137839763,-500.0,0.00028773,5]
[390758473,1760137839773,-500.0,0.00028773,5]
[390758474,1760137839783,-324.6500076,0.00028773,5]
[390758475,1760137839793,-500.0,0.00028773,5]
[390758476,1760137839803,-200.0,0.00028782,120]
[390758477,1760137839812,-398.0,0.00028864,2]
[390758478,1760137839822,-261.76802087,0.000289,2]
[390758479,1760137839832,-500.0,0.00028946,60]
[390758480,1760137839841,-411.0,0.0002895,2]
[390758481,1760137839851,-5528.85775724,0.0002899,2]
[390758482,1760137839861,-2000.0,0.00029,2]
[390758483,1760137839870,-154.0,0.00029,120]
[390758484,1760137839879,-261.76802083,0.00029054,2]
[390758485,1760137839890,-200.0,0.000291,120]
[390758486,1760137839899,-500.0,0.00029147,2]
[390758487,1760137839909,-1000.0,0.00029147,2]
[390758488,1760137839918,-261.76802083,0.00029208,2]
[390758489,1760137839928,-528.98,0.00029319,2]
[390758490,1760137839938,-1000.0,0.00029321,5]
[390758491,1760137839947,-1000.0,0.00029321,5]
[390758492,1760137839957,-168.0,0.0002935,2]
[390758493,1760137839966,-261.76802083,0.00029361,2]
[390758494,1760137839976,-151.0,0.00029393,2]
[390758495,1760137839987,-151.0,0.00029393,2]
[390758496,1760137839997,-151.0,0.00029393,2]
[390758497,1760137840006,-500.0,0.00029393,2]
[390758498,1760137840016,-500.0,0.00029393,2]
[390758499,1760137840025,-235.42674795,0.00029393,2]
[390758500,1760137840034,-151.0,0.00029393,2]
[390758501,1760137840044,-151.0,0.00029393,2]
[390758502,1760137840054,-500.0,0.00029393,2]
[390758503,1760137840064,-151.0,0.00029393,2]
[390758504,1760137840073,-500.0,0.00029393,2]
[390758505,1760137840082,-151.0,0.00029393,2]
[390758506,1760137840092,-500.0,0.00029393,2]
[390758507,1760137840101,-500.0,0.00029393,2]
[390758508,1760137840111,-151.0,0.00029393,2]
[390758509,1760137840121,-198.0,0.00029393,2]
[390758510,1760137840131,-151.0,0.00029393,2]
[390758511,1760137840141,-151.0,0.00029393,2]
[390758513,1760137840152,-245.0,0.00029393,2]
[390758514,1760137840162,-500.0,0.00029393,2]
[390758515,1760137840172,-227.41664772,0.00029393,2]
[390758516,1760137840181,-229.58133571,0.00029393,2]
[390758517,1760137840325,-205.3908823,0.00029393,2]
[390758519,1760137840335,-151.0,0.00029393,2]
[390758520,1760137840345,-500.0,0.00029393,2]
[390758521,1760137840355,-500.0,0.00029393,2]
[390758522,1760137840364,-500.0,0.00029393,2]
[390758523,1760137840374,-168.0,0.00029394,2]
[390758524,1760137840384,-150.0,0.000294,2]
[390758525,1760137840393,-250.0,0.000294,10]
[390758526,1760137840403,-500.0,0.00029419,10]
[390758527,1760137840412,-339985.453933,0.00029419,2]
[390758528,1760137840422,-8643.35700447,0.00029419,2]
[390758529,1760137840431,-9464.96,0.00029428,2]
[390758530,1760137840441,-290.8798321,0.00029448,2]
[390758531,1760137840450,-151.0,0.00029448,2]
[390758532,1760137840459,-151.0,0.00029448,2]
[390758533,1760137840469,-151.0,0.00029448,2]
[390758534,1760137840481,-500.0,0.00029448,2]
[390758535,1760137840490,-151.0,0.00029448,2]
[390758536,1760137840500,-500.0,0.00029448,2]
[390758537,1760137840509,-209.51351402,0.00029448,2]
[390758539,1760137840518,-500.0,0.00029448,2]
[390758541,1760137840527,-500.0,0.00029448,2]
[390758543,1760137840537,-151.0,0.00029448,2]
[390758545,1760137840547,-151.0,0.00029448,2]
[390758547,1760137840557,-500.0,0.00029448,2]
[390758549,1760137840566,-500.0,0.00029448,2]
[390758551,1760137840576,-500.0,0.00029448,2]
[390758553,1760137840586,-500.0,0.00029448,2]
[390758554,1760137840596,-868.83,0.00029449,3]
[390758556,1760137840606,-434.41,0.00029449,3]
[390758558,1760137840616,-217.21,0.00029449,3]
[390758560,1760137840625,-651.63,0.00029449,3]
[390758562,1760137840635,-500.0,0.0002945,2]
[390758565,1760137840647,-500.0,0.0002945,2]
[390758566,1760137840657,-151.0,0.0002945,2]
[390758567,1760137840667,-8643.35700447,0.00029454,2]
[390758568,1760137840681,-1000.0,0.00029458,2]
[390758569,1760137840692,-500.0,0.00029458,60]
[390758570,1760137840701,-500.0,0.00029458,60]
[390758571,1760137840711,-500.0,0.00029458,60]
[390758572,1760137840720,-500.0,0.00029458,60]
[390758573,1760137840732,-500.0,0.00029458,60]
[390758574,1760137840742,-500.0,0.00029458,60]
[390758575,1760137840752,-400.0,0.00029468,2]
[390758577,1760137840761,-500.0,0.00029469,60]
[390758579,1760137840770,-500.0,0.00029473,5]
[390758581,1760137840779,-500.0,0.00029473,5]
[390758582,1760137840788,-566.13330149,0.00029473,5]
[390758584,1760137840798,-500.11745918,0.00029473,5]
[390758586,1760137840807,-500.0,0.00029473,5]
[390758587,1760137840816,-635.08641516,0.00029473,5]
[390758588,1760137840826,-500.0,0.00029473,5]
[390758589,1760137840835,-500.0,0.00029473,5]
[390758591,1760137840845,-500.0,0.00029473,5]
[390758593,1760137840856,-215.09406881,0.00029473,5]
[390758594,1760137840866,-500.0,0.00029473,5]
[390758595,1760137840876,-592.89641741,0.00029473,5]
[390758596,1760137840886,-500.0,0.00029473,5]
[390758597,1760137840896,-183.12257321,0.00029473,5]
[390758598,1760137840905,-177.18401222,0.00029473,2]
[390758599,1760137840915,-160.0,0.00029473,7]
[390758600,1760137840925,-525.2781959,0.00029478,11]
[390758601,1760137840934,-5762.23800298,0.0002948,2]
[390758602,1760137840944,-5762.23800298,0.00029486,2]
[390758603,1760137840953,-407.99401352,0.00029489,2]
[390758604,1760137840962,-500.0,0.00029489,2]
[390758605,1760137840971,-500.0,0.00029489,2]
[390758606,1760137840982,-500.0,0.00029489,2]
[390758607,1760137840993,-500.0,0.00029489,2]
[390758608,1760137841003,-551.47236554,0.00029489,2]
[390758609,1760137841012,-500.0,0.00029489,2]
[390758610,1760137841022,-500.0,0.00029489,2]
[390758611,1760137841033,-500.0,0.00029489,2]
[390758612,1760137841042,-197.2284059,0.00029489,2]
[390758613,1760137841052,-500.0,0.00029489,2]
[390758614,1760137841061,-193.76948891,0.00029489,2]
[390758615,1760137841071,-500.0,0.00029489,2]
[390758616,1760137841080,-457.61883437,0.00029489,2]
[390758617,1760137841089,-500.0,0.00029489,2]
[390758618,1760137841099,-500.0,0.00029489,2]
[390758619,1760137841108,-500.0,0.00029489,2]
[390758620,1760137841117,-500.0,0.00029489,2]
[390758621,1760137841127,-500.0,0.00029489,2]
[390758622,1760137841136,-500.0,0.00029489,2]
[390758623,1760137841147,-500.0,0.00029489,2]
[390758624,1760137841156,-500.0,0.00029489,2]
[390758625,1760137841165,-448.05953858,0.00029489,2]
[390758626,1760137841174,-500.0,0.00029489,2]
[390758627,1760137841184,-500.0,0.00029489,2]
[390758628,1760137841194,-500.0,0.00029489,2]
[390758629,1760137841203,-500.0,0.00029489,2]
[390758630,1760137841212,-500.0,0.00029489,2]
[390758631,1760137841222,-500.0,0.00029489,2]
[390758632,1760137841232,-500.0,0.00029489,2]
[390758633,1760137841241,-51189.9003,0.00029515,7]
[390758634,1760137841250,-151.0,0.000295,19]
[390758635,1760137841260,-151.0,0.000295,17]
[390758636,1760137841269,-151.0,0.000295,16]
[390758637,1760137841279,-151.0,0.000295,10]
[390758638,1760137841289,-151.0,0.000295,19]
[390758639,1760137841298,-151.0,0.000295,18]
[390758640,1760137841308,-151.0,0.000295,20]
[390758641,1760137841318,-151.0,0.000295,16]
[390758642,1760137841328,-151.0,0.000295,12]
[390758643,1760137841337,-151.0,0.000295,15]
[390758644,1760137841347,-250.0,0.000295,10]
[390758645,1760137841356,-1500.0,0.000295,2]
[390758646,1760137841366,-1464.67936345,0.000295,19]
[390758647,1760137841376,-500.0,0.00029501,60]
[390758648,1760137841385,-500.0,0.00029501,60]
[390758649,1760137841395,-500.0,0.00029501,60]
[390758650,1760137841405,-500.0,0.00029501,60]
[390758651,1760137841415,-500.0,0.00029501,60]
[390758652,1760137841425,-500.0,0.00029501,60]
[390758653,1760137841435,-380.65016389,0.00029501,60]
[390758654,1760137841445,-500.0,0.00029501,10]
[390758655,1760137841455,-8643.35700447,0.00029501,2]
[390758656,1760137841465,-151.0,0.00029503,2]
[390758657,1760137841474,-151.0,0.00029503,2]
[390758658,1760137841486,-221.21629564,0.00029503,2]
[390758659,1760137841496,-198.02716197,0.00029503,2]
[390758660,1760137841505,-151.0,0.00029503,2]
[390758661,1760137841515,-500.0,0.00029503,2]
[390758662,1760137841525,-500.0,0.00029503,2]
[390758663,1760137841535,-500.0,0.00029503,2]
[390758664,1760137841544,-151.0,0.00029503,2]
[390758665,1760137841554,-154.67074992,0.00029503,2]
[390758666,1760137841563,-448.67166172,0.00029503,2]
[390758667,1760137841573,-500.0,0.00029503,2]
[390758668,1760137841583,-500.91123134,0.00029503,2]
[390758669,1760137841594,-160.0,0.00029503,5]
[390758670,1760137841605,-276.39604321,0.00029503,5]
[390758671,1760137841615,-500.0,0.00029505,2]
[390758672,1760137841625,-500.0,0.00029505,2]
[390758673,1760137841636,-151.0,0.00029505,2]
[390758674,1760137841653,-2881.11900149,0.00029511,2]
[390758675,1760137841663,-329.0,0.00029513,7]